fUSD/lending_fUSD_20240502
["ID","MTS","AMOUNT","RATE_DAILY","PERIOD"]
[325237665,1714614633453,-500.0,0.00012777,2]
[325237666,1714614633466,-151.99489789,0.0001278,2]
[325237667,1714614633479,-22269.281,0.0001278,2]
[325237668,1714614633492,-14244.32939115,0.0001278,2]
[325237669,1714614633505,-316.35298476,0.0001278,2]
[325237670,1714614633518,-1008.01,0.000128,2]
[325237671,1714614633531,-1000.0,0.000128,3]
[325237672,1714614633544,-150.0,0.00012864,2]
[325237673,1714614633557,-4259.1702672,0.00012869,2]
[325237674,1714614633569,-402.2695969,0.00012869,2]
[325237675,1714614633582,-402.269597,0.00012869,2]
[325237676,1714614633595,-807.3143783,0.00012869,2]
[325237677,1714614633608,-3487.3849449,0.00012871,2]
[325237678,1714614633621,-2715.5996227,0.00012871,2]
[325237679,1714614633634,-402.2695969,0.00012871,2]
[325237680,1714614633647,-402.2695969,0.00012871,2]
[325237681,1714614633660,-402.269597,0.00012871,2]
[325237682,1714614633673,-402.269597,0.00012871,2]
[325237683,1714614633689,-1107.0761537,0.00012871,2]
[325237684,1714614633702,-1406.837929,0.00012871,2]
[325237685,1714614633714,-2358.2095973,0.00012878,2]
[325237686,1714614633727,-10436.61679574,0.00012878,2]
[325237687,1714614633740,-5000.0,0.00012878,2]
[325237688,1714614633753,-204.05021,0.00012878,3]
[325237689,1714614633766,-199.05021,0.00012878,3]
[325237690,1714614633779,-1623.24851542,0.00012879,2]
[325237691,1714614633791,-682.24124209,0.00012879,2]
[325237692,1714614633804,-5000.0,0.00012879,2]
[325237693,1714614633816,-5000.0,0.00012879,2]
[325237694,1714614633828,-5000.0,0.00012879,2]
[325237695,1714614633841,-5000.0,0.00012879,2]
[325237696,1714614633854,-5000.0,0.00012879,2]
[325237697,1714614633866,-5000.0,0.00012879,2]
[325237698,1714614633879,-5000.0,0.00012879,2]
[325237699,1714614633891,-5000.0,0.00012879,2]
[325237700,1714614633904,-5000.0,0.00012879,2]
[325237701,1714614633916,-2629.44392961,0.00012879,2]
[325237702,1714614633929,-43403.96492194,0.00012879,2]
[325237703,1714614633943,-704.0,0.0001288,2]
[325237704,1714614633956,-6686.60083359,0.0001288,2]
[325237705,1714614634042,-619.65012665,0.0001288,2]
[325237706,1714614634067,-818.26057678,0.0001288,2]
[325237707,1714614634089,-485.80288671,0.0001288,2]
[325237735,1714614638627,-675.2489,0.0001248,2]
[325237737,1714614638637,-134.50030423,0.0001288,2]
[325237738,1714614638650,-6843.9,0.0001288,2]
[325237740,1714614638691,-13331.26543702,0.0001288,2]
[325237741,1714614638702,-771.07115909,0.0001288,2]
[325237742,1714614638713,-882.06164822,0.0001288,2]
[325237743,1714614638725,-414.4172913,0.0001288,2]
[325237744,1714614638798,-2611.75413778,0.0001288,2]
[325237810,1714614642983,-583.0,0.0001288,2]
[325237815,1714614642995,-83.30005708,0.0001288,2]
[325237819,1714614643008,-1004.5932,0.0001288,2]
[325237824,1714614643020,-239129.22,0.0001288,2]
[325237846,1714614643114,-8612.29288161,0.0001288,2]
[325237848,1714614643125,-2298.90322103,0.0001288,2]
[325237861,1714614643598,-5000.0,0.0001288,2]
[325237863,1714614643611,-664.75335024,0.0001288,2]
[325237865,1714614643622,-5750.0772,0.0001288,2]
[325237868,1714614643634,-507.58230075,0.0001288,2]
[325237870,1714614643646,-363.37462895,0.0001288,2]
[325237874,1714614643678,-950.36,0.0001288,2]
[325237876,1714614643691,-49187.50473394,0.0001288,2]
[325237882,1714614643735,-470.23000002,0.0001288,2]
[325237885,1714614643747,-6399.8147,0.0001288,2]
[325238142,1714614646311,-1485.85,0.0001288,2]
[325238144,1714614646322,-38722.4193582,0.0001288,2]
[325238151,1714614646376,-263.63284643,0.0001288,2]
[325238153,1714614646387,-3639.3868,0.0001288,2]
[325238156,1714614646398,-4140.496,0.0001288,2]
[325239007,1714614851345,150.0,0.00010959,2]
[325239010,1714614983994,2799.12,0.0001089,2]
[325239011,1714615062718,250.0,0.00010959,2]
[325239012,1714615204820,206.70807981,0.00010952,2]
[325239016,1714615811736,3225.83,0.00025,120]
[325239022,1714615832343,-408.81148644,0.0001102,2]
[325239023,1714615832354,-155.0,0.00011021,2]
[325239024,1714615832364,-546.05317817,0.00011021,2]
[325239025,1714615832374,-250.0,0.00011561,2]
[325239026,1714615832385,-216.0,0.0001159,2]
[325239027,1714615832395,-155.25,0.00011783,2]
[325239028,1714615832406,-155.25,0.00011852,2]
[325239029,1714615832415,-171.73,0.00011893,2]
[325239030,1714615832425,-155.25,0.0001192,2]
[325239031,1714615832435,-225.28,0.00011937,2]
[325239032,1714615832445,-784.0,0.00011984,2]
[325239033,1714615832455,-155.25,0.00011988,2]
[325239034,1714615832465,-441.39927471,0.00012,2]
[325239035,1714615832477,-326.10946856,0.00012,2]
[325239036,1714615832489,-12509.28155768,0.00012,2]
[325239037,1714615832501,-105657.20969905,0.00012,2]
[325239038,1714615832511,-499.99,0.00012,2]
[325239039,1714615832521,-155.25,0.00012056,2]
[325239040,1714615832531,-155.25,0.00012125,2]
[325239041,1714615832541,-155.25,0.00012193,2]
[325239042,1714615832550,-9982.2974932,0.00012233,2]
[325239043,1714615832560,-325.9796809,0.00012235,2]
[325239044,1714615832570,-155.25,0.00012261,2]
[325239045,1714615832579,-155.25,0.00012329,2]
[325239046,1714615832588,-1112.7385,0.0001238,2]
[325239047,1714615832598,-274.7457,0.0001238,2]
[325239048,1714615832608,-150.99,0.0001238,2]
[325239049,1714615832619,-602.0406,0.0001238,2]
[325239050,1714615832629,-155.25,0.00012397,2]
[325239051,1714615832640,-706.26039337,0.0001247,2]
[325239052,1714615832650,-188.28,0.0001247,2]
[325239053,1714615832659,-40457.54920646,0.0001248,2]
[325239054,1714615832690,-9499.39207902,0.0001248,2]
[325239055,1714615832702,-5468.5,0.0001248,2]
[325239056,1714615832714,-358.22005688,0.0001248,2]
[325239057,1714615832725,-9595.25091882,0.0001248,2]
[325239058,1714615832737,-2797.89120681,0.0001248,2]
[325239059,1714615832758,-1357.62885533,0.0001248,2]
[325239060,1714615832769,-883.54995,0.0001248,2]
[325239061,1714615832782,-846.47,0.0001248,2]
[325239063,1714615832793,-350.2299999,0.0001248,2]
[325239094,1714615838553,-155.0,0.0001102,2]
[325239095,1714615838563,-19543.42012996,0.0001248,2]
[325239096,1714615838712,-153841.89759682,0.0001248,2]
[325239097,1714615838722,-8911.0948,0.0001248,2]
[325239098,1714615838732,-44188.7838,0.0001248,2]
[325239099,1714615838741,-309.04646388,0.00012523,2]
[325239100,1714615838751,-150.0,0.00012623,2]
[325239101,1714615838760,-187.0,0.00012698,2]
[325239102,1714615838770,-1000.0,0.000127,2]
[325239103,1714615838779,-1005.0,0.000127,2]
[325239104,1714615838788,-172.10124117,0.00012751,2]
[325239105,1714615838798,-162.66342917,0.00012768,2]
[325239106,1714615838808,-188.28,0.0001277,2]
[325239107,1714615838818,-173.63892744,0.0001278,2]
[325239108,1714615838830,-159.91054381,0.0001278,2]
[325239109,1714615838839,-14384.24477183,0.0001278,2]
[325239110,1714615838848,-726.23659938,0.00012805,2]
[325239111,1714615838858,-1646.3823084,0.00012869,2]
[325239112,1714615838867,-20692.5896382,0.00012869,2]
[325239113,1714615838877,-10852.859619,0.00012869,2]
[325239114,1714615838886,-1827.3940357,0.00012869,2]
[325239115,1714615838896,-4415.0870585,0.00012869,2]
[325239116,1714615838906,-225.37045452,0.0001287,2]
[325239117,1714615838915,-188.28,0.0001287,2]
[325239118,1714615838925,-188.28,0.0001287,2]
[325239120,1714615838934,-188.28,0.0001287,2]
[325239122,1714615838943,-188.28,0.0001287,2]
[325239124,1714615838952,-188.28,0.0001287,2]
[325239125,1714615838963,-188.28,0.0001287,2]
[325239126,1714615838972,-188.28,0.0001287,2]
[325239127,1714615838981,-188.28,0.0001287,2]
[325239128,1714615838990,-1348.4826837,0.00012871,2]
[325239129,1714615839000,-1050.583059,0.00012871,2]
[325239130,1714615839009,-16950.9158954,0.00012871,2]
[325239131,1714615839019,-13209.2421526,0.00012871,2]
[325239132,1714615839028,-8893.2956746,0.00012871,2]
[325239133,1714615839037,-6933.7317302,0.00012871,2]
[325239134,1714615839046,-1497.7087174,0.00012871,2]
[325239135,1714615839055,-1168.023399,0.00012871,2]
[325239136,1714615839065,-3618.5487345,0.00012871,2]
[325239137,1714615839074,-2822.0104106,0.00012871,2]
[325239138,1714615839083,-890.15375907,0.00012878,2]
[325239139,1714615839094,-157.27270255,0.00012878,2]
[325239140,1714615839104,-682.24124209,0.00012879,2]
[325239141,1714615839113,-585.0,0.0001288,2]
[325239142,1714615839123,-399466.17052369,0.0001288,2]
[325239144,1714615839192,-1892.11344755,0.0001288,2]
[325239147,1714615839203,-50007.06452374,0.0001288,2]
[325239256,1714615840495,-201700.48736127,0.0001288,2]
[325239259,1714615840721,-238158.38882189,0.0001288,2]
[325239260,1714615840733,-307.70679472,0.0001288,2]
[325239261,1714615840745,-437.9,0.0001288,2]
[325239262,1714615840757,-453.8784,0.0001288,2]
[325239263,1714615840890,-662.70634916,0.0001288,2]
[325239300,1714615843363,-1175.32436678,0.0001288,2]
[325239302,1714615843374,-34237.72627829,0.0001288,2]
[325239307,1714615843773,-21670.86429292,0.0001288,2]
[325239310,1714615843792,-5071.68820423,0.0001288,2]
[325239314,1714615843820,-575.12746455,0.0001288,2]
[325239317,1714615843844,-615.28590621,0.0001288,2]
[325239319,1714615843855,-600.64996105,0.0001288,2]
[325239583,1714615846398,-289.79480689,0.00012879,2]
[325239585,1714615846409,-155.0,0.00012879,2]
[325239587,1714615846418,-6619.46259311,0.0001288,2]
[325239589,1714615846430,-5733.52815863,0.0001288,2]
[325239603,1714615846554,-1165.14432579,0.0001288,2]
[325239605,1714615846566,-6373.8,0.0001288,2]
[325239688,1714616628839,980.57470576,0.0001094,2]
[325239689,1714616633768,980.57470576,0.00010989,2]
[325239691,1714616746029,326.85823526,0.0001094,2]
[325239693,1714616751312,326.85823525,0.00010989,2]
[325239705,1714616846442,251.47788144,0.00011,2]
[325239708,1714616884358,10000.0,0.00022,90]
[325239710,1714616913446,10000.0,0.00025003,120]
[325239711,1714616929337,10000.0,0.00025003,120]
[325239713,1714616935817,10000.0,0.00025003,120]
[325239714,1714616944365,10000.0,0.00025003,120]
[325239716,1714616951879,-155.0,0.00011039,2]
[325239717,1714616951905,-1826.76617027,0.00011039,2]
[325239718,1714616951955,-1981.76617027,0.00011039,2]
[325239719,1714616952004,-712.07784498,0.00011039,2]
[325239720,1714616952044,-1981.76617027,0.00011039,2]
[325239721,1714616952146,-1981.76617027,0.00011039,2]
[325239722,1714616956691,10000.0,0.00025003,120]
[325239723,1714616961900,1797.72029389,0.0001094,2]
[325239724,1714616966416,10000.0,0.00025003,120]
[325239726,1714616972223,10000.0,0.00022,90]
[325239727,1714616984067,10000.0,0.00022,90]
[325239729,1714616993486,10000.0,0.00022,90]
[325239730,1714617001590,10000.0,0.00021975,90]
[325239732,1714617006731,10000.0,0.00021975,90]
[325239733,1714617012649,10000.0,0.00021975,90]
[325239736,1714617032555,-493.36047548,0.00011039,2]
[325239737,1714617032764,-6345.0,0.00011039,2]
[325239738,1714617032776,-301.77695469,0.00011039,2]
[325239739,1714617032787,-1763.99,0.00011039,2]
[325239740,1714617032799,-11502.22391713,0.00011039,2]
[325239741,1714617032809,-198.51,0.00011138,2]
[325239742,1714617032819,-683.32093934,0.0001114,2]
[325239743,1714617032828,-1000.0,0.00012062,2]
[325239744,1714617032838,-180.22,0.00012215,2]
[325239745,1714617032847,-186.67,0.00012235,2]
[325239746,1714617032856,-250.0,0.00012235,2]
[325239747,1714617032868,-202.6406,0.0001228,2]
[325239748,1714617032877,-1754.1276,0.0001228,2]
[325239749,1714617032887,-171.26334321,0.00012378,2]
[325239750,1714617032897,-4467.05565879,0.00012379,2]
[325239751,1714617032906,-40897.79927699,0.0001238,2]
[325239752,1714617039226,-363.07044995,0.0001238,2]
[325239754,1714617039538,-11664.35128057,0.0001238,2]
[325239757,1714617039549,-2807.39999994,0.0001238,2]
[325239761,1714617040863,-11128.49786161,0.0001238,2]
[325239762,1714617040883,-81424.0523482,0.0001238,2]
[325239763,1714617040895,-6009.78893335,0.0001238,2]
[325239764,1714617041102,-772.48773305,0.0001238,2]
[325239771,1714617044443,-1884.50933853,0.0001238,2]
[325239772,1714617044455,-745.25502559,0.0001238,2]
[325239773,1714617044466,-977.79543901,0.0001238,2]
[325239774,1714617044715,-13775.43325011,0.0001238,2]
[325239775,1714617044727,-67623.2120631,0.0001238,2]
[325239776,1714617044736,-241.0495,0.0001238,2]
[325239777,1714617044746,-42085.872,0.0001238,2]
[325239778,1714617044756,-10219.21,0.0001238,2]
[325239779,1714617044767,-1085.0,0.000126,2]
[325239780,1714617044778,-499.99,0.000126,2]
[325239781,1714617044787,-150.0,0.0001265,2]
[325239782,1714617044796,-498.7478831,0.00012706,2]
[325239783,1714617044805,-318.46402,0.0001275,2]
[325239784,1714617044815,-170.55625159,0.00012751,2]
[325239785,1714617044824,-150.0,0.00012756,2]
[325239786,1714617044834,-500.0,0.00012776,2]
[325239787,1714617044843,-200.0,0.00012777,2]
[325239788,1714617044853,-1000.0,0.00012777,2]
[325239789,1714617044863,-200.0,0.00012777,2]
[325239790,1714617044873,-500.0,0.00012777,2]
[325239791,1714617044882,-13370.74968252,0.0001278,2]
[325239792,1714617044891,-1000.0,0.000128,6]
[325239793,1714617044900,-481.718286,0.0001287,2]
[325239794,1714617044910,-5648.984186,0.0001287,2]
[325239795,1714617044919,-788.8525823,0.0001287,2]
[325239796,1714617044929,-481.718286,0.00012871,2]
[325239797,1714617044939,-5137.4902133,0.00012871,2]
[325239798,1714617044948,-719.0983019,0.00012871,2]
[325239799,1714617044958,-436.88517374,0.00012879,2]
[325239800,1714617044967,-523.0,0.0001288,2]
[325239801,1714617044977,-82967.03845772,0.0001288,2]
[325239802,1714617046632,-452.28,0.0001288,2]
[325239803,1714617046842,-255.12999486,0.0001288,2]
[325239804,1714617046946,-493.706,0.0001288,2]
[325239806,1714617081029,10000.0,0.00021975,90]
[325239808,1714617107377,10000.0,0.00021975,90]
[325239832,1714618232197,-200.0,0.00011998,2]
[325239834,1714618232207,-250.0,0.00012041,2]
[325239836,1714618232217,-326.61022031,0.00012099,2]
[325239838,1714618232229,-375.71279097,0.00012099,2]
[325239840,1714618232240,-322.91174239,0.00012099,2]
[325240019,1714618239039,-385.16139657,0.00012099,2]
[325240106,1714618240435,-876.66,0.00012099,2]
[325240108,1714618240459,-2560.0,0.00012099,2]
[325240110,1714618240483,-651.5017207,0.00012099,2]
[325240217,1714618244470,-597.5751966,0.00012099,2]
[325240218,1714618244482,-3757.09206793,0.00012099,2]
[325240219,1714618244491,-6930.95470239,0.000121,2]
[325240220,1714618244500,-166.29169492,0.00012115,2]
[325240221,1714618244510,-198.52,0.00012148,2]
[325240222,1714618244519,-6356.46,0.00012254,2]
[325240223,1714618244528,-216.12,0.0001244,2]
[325240224,1714618244537,-1536.97646804,0.0001247,2]
[325240225,1714618244549,-109.41861829,0.0001247,2]
[325240226,1714618244558,-219.86517757,0.00012734,2]
[325240227,1714618244567,-287.00538814,0.00012764,2]
[325240313,1714618246070,-512.99461186,0.00012764,2]
[325240314,1714618246079,-708.72538814,0.00012776,2]
[325240315,1714618246091,-291.27461186,0.00012776,2]
[325240316,1714618246101,-165.52544549,0.00012776,2]
[325240317,1714618246384,-56.21455451,0.00012776,2]
[325240318,1714618246395,-200.0,0.00012777,2]
[325240319,1714618246404,-1000.0,0.00012777,2]
[325240320,1714618246413,-200.0,0.00012777,2]
[325240321,1714618246422,-999.99,0.00012777,2]
[325240322,1714618246432,-3297.79544549,0.00012779,2]
[325240323,1714618246444,-2000.0,0.00012779,2]
[325240325,1714618317959,599.66940306,6.94e-05,2]
[325240340,1714619432102,-155.0,0.00011484,2]
[325240341,1714619432112,-162.50014884,0.00011485,2]
[325240342,1714619432121,-462.0398514,0.00011584,2]
[325240343,1714619432325,-537.9601486,0.00011584,2]
[325240344,1714619432335,-150.0,0.00011589,2]
[325240345,1714619432346,-150.0,0.00011661,2]
[325240346,1714619432355,-150.0,0.00011732,2]
[325240347,1714619432364,-358.82695122,0.00011745,2]
[325240348,1714619432376,-276.38074848,0.00011745,2]
[325240349,1714619432390,-9422.5131031,0.00011745,2]
[325240350,1714619432400,-150.0,0.00011804,2]
[325240351,1714619432409,-180.22,0.0001182,2]
[325240352,1714619432418,-1000.0,0.00011855,2]
[325240353,1714619432427,-499.99,0.00011855,2]
[325240354,1714619432436,-150.0,0.00011875,2]
[325240355,1714619432446,-207.32,0.00011914,2]
[325240356,1714619432455,-150.0,0.00011947,2]
[325240357,1714619432464,-500.0,0.00012,2]
[325240358,1714619432474,-500.0,0.00012,2]
[325240359,1714619432483,-500.0,0.00012,2]
[325240360,1714619432493,-510.53,0.00012,2]
[325240361,1714619432503,-500.0,0.00012,2]
[325240362,1714619432512,-500.0,0.00012,2]
[325240364,1714619432521,-500.0,0.00012,2]
[325240366,1714619432531,-509.22,0.00012,2]
[325240368,1714619432539,-150.0,0.00012018,2]
[325240370,1714619432549,-150.0,0.0001209,2]
[325240372,1714619432558,-911.44,0.00012141,2]
[325240374,1714619432568,-823.11,0.00012141,2]
[325240376,1714619432577,-911.44,0.00012141,2]
[325240378,1714619432587,-911.44,0.00012141,2]
[325240380,1714619432597,-911.44,0.00012141,2]
[325240382,1714619432607,-836.08,0.00012141,2]
[325240384,1714619432616,-150.0,0.00012161,2]
[325240386,1714619432625,-150.0,0.00012233,2]
[325240388,1714619432634,-150.0,0.00012304,2]
[325240390,1714619432643,-1560.03868352,0.00012344,2]
[325240392,1714619432652,-150.0,0.00012376,2]
[325240394,1714619432662,-150.0,0.00012447,2]
[325240396,1714619432671,-557.21,0.00012499,2]
[325240398,1714619432681,-16357.9935,0.00012508,2]
[325240400,1714619432690,-150.0,0.00012519,2]
[325240402,1714619432700,-150.0,0.00012531,2]
[325240404,1714619432709,-150.0,0.00012591,2]
[325240406,1714619432718,-354.25,0.000126,2]
[325240408,1714619432727,-150.0,0.00012662,2]
[325240409,1714619432737,-1222.3659,0.00012679,2]
[325240410,1714619432746,-642.0841,0.00012679,2]
[325240411,1714619432755,-623.3062,0.00012679,2]
[325240412,1714619432765,-150.0,0.00012734,2]
[325240413,1714619432775,-200.0,0.00012776,2]
[325240414,1714619432784,-1000.0,0.00012776,2]
[325240415,1714619432794,-200.0,0.00012777,2]
[325240416,1714619432804,-1000.0,0.00012777,2]
[325240417,1714619432813,-1000.0,0.00012777,2]
[325240418,1714619432823,-200.0,0.00012777,2]
[325240419,1714619432832,-15711.82773738,0.00012779,2]
[325240420,1714619439030,-2298.34491096,0.00012779,2]
[325240421,1714619439042,-471.123024,0.00012779,2]
[325240422,1714619439054,-2514.14874685,0.00012779,2]
[325240423,1714619439066,-1478.26174416,0.00012779,2]
[325240424,1714619439077,-1753.89266644,0.00012779,2]
[325240425,1714619439089,-4190.85538286,0.00012779,2]
[325240426,1714619439102,-270997.52423886,0.00012779,2]
[325240427,1714619439111,-265.38668,0.00012779,2]
[325240428,1714619439121,-172.55573534,0.0001278,2]
[325240429,1714619439130,-162.39708609,0.0001278,2]
[325240430,1714619439140,-12674.03971181,0.0001278,2]
[325240431,1714619439149,-487.55114105,0.0001278,2]
[325240432,1714619439158,-1000.0,0.000128,2]
[325240433,1714619439168,-150.0,0.00012805,2]
[325240434,1714619439178,-660.5915,0.00012816,2]
[325240435,1714619439187,-2949.51644288,0.00012856,2]
[325240436,1714619439197,-155.39633957,0.0001286,2]
[325240437,1714619439207,-559.90219251,0.00012862,2]
[325240438,1714619439217,-859.37306694,0.00012868,2]
[325240439,1714619439226,-377.68474299,0.00012868,2]
[325240440,1714619439235,-157.68389467,0.00012868,2]
[325240441,1714619439245,-2990.48201871,0.00012868,2]
[325240442,1714619439254,-155.46206617,0.00012868,2]
[325240444,1714619439264,-2659.2144864,0.00012868,2]
[325240445,1714619439274,-396.4978068,0.00012868,2]
[325240446,1714619439283,-1026.0889426,0.00012868,2]
[325240447,1714619439292,-500.0,0.00012869,2]
[325240448,1714619439301,-250000.0,0.0001287,2]
[325240449,1714619439313,-4497.2506556,0.0001287,2]
[325240450,1714619439323,-802.86381005,0.0001287,2]
[325240451,1714619439332,-4220.6349334,0.0001287,2]
[325240452,1714619439341,-3727.3518018,0.00012871,2]
[325240453,1714619439352,-3498.0908178,0.00012871,2]
[325240454,1714619439361,-2204.6020969,0.00012871,2]
[325240455,1714619439371,-396.4978068,0.00012871,2]
[325240456,1714619439381,-850.9139279,0.00012871,2]
[325240457,1714619439391,-193.68979538,0.00012877,2]
[325240458,1714619439402,-179.354062,0.00012879,2]
[325240459,1714619439411,-5851.28126909,0.00012879,2]
[325240460,1714619439420,-719894.33416959,0.0001288,2]
[325240461,1714619440309,-1342.22,0.0001288,2]
[325240462,1714619440323,-552.33090042,0.0001288,2]
[325240463,1714619440335,-1464.85383896,0.0001288,2]
[325240464,1714619440347,-500.49766,0.0001288,2]
[325240465,1714619440359,-892.19844599,0.0001288,2]
[325240466,1714619440371,-3060.50629127,0.0001288,2]
[325240467,1714619440382,-1050.0,0.0001288,2]
[325240468,1714619440616,-557.83718156,0.0001288,2]
[325240469,1714619440628,-356.19588052,0.0001288,2]
[325240470,1714619443624,-1223.34715648,0.0001288,2]
[325240471,1714619444037,-8252.32631739,0.0001288,2]
[325240472,1714619444048,-3033.69858913,0.0001288,2]
[325240473,1714619444059,-333.33157814,0.0001288,2]
[325240481,1714619446197,-155.12476192,0.00012879,2]
[325240482,1714619446207,-9055.44595221,0.0001288,2]
[325240483,1714620489029,2000.0,0.00011,2]
[325240484,1714620512666,1000.0,0.00011,2]
[325240485,1714620558899,-364.09927495,0.00011448,2]
[325240486,1714620558925,-1000.0,0.00011449,2]
[325240487,1714620558952,-565.9031802,0.0001145,2]
[325240488,1714620558979,-224.54656564,0.00011451,2]
[325240489,1714620559010,-1034.29624835,0.00011451,2]
[325240490,1714620564012,-2154.54902079,0.00011451,2]
[325240492,1714620632362,-150.99273664,0.00011688,2]
[325240493,1714620632372,-187.48416323,0.00012133,2]
[325240494,1714620632383,-812.51583677,0.00012133,2]
[325240495,1714620632392,-250.0,0.00012134,2]
[325240496,1714620632401,-207.34,0.00012195,2]
[325240497,1714620632412,-41.66726336,0.00012256,2]
[325240498,1714620632424,-758.33273664,0.00012256,2]
[325240499,1714620632433,-200.0,0.00012266,2]
[325240500,1714620632442,-7113.22,0.00012272,2]
[325240501,1714620632452,-250.4,0.00012399,2]
[325240502,1714620632462,-5911.20727404,0.000124,2]
[325240503,1714620632474,-397.08384421,0.000124,2]
[325240532,1714620632798,-280.56667432,0.000124,2]
[325240534,1714620632810,-477.00633866,0.000124,2]
[325240536,1714620632820,-150.0,0.00012727,2]
[325240538,1714620632829,-150.0,0.00012743,2]
[325240540,1714620632838,-162.39708608,0.0001278,2]
[325240542,1714620632848,-799.99657526,0.0001278,2]
[325240544,1714620632868,-6159.22757422,0.0001278,2]
[325240568,1714620639305,-365.26900912,0.0001278,2]
[325240569,1714620639316,-771.65526251,0.0001278,2]
[325240570,1714620639327,-1747.47384143,0.0001278,2]
[325240571,1714620639339,-1774.24747335,0.0001278,2]
[325240572,1714620639347,-1016.99226143,0.0001278,2]
[325240573,1714620639539,-4488.6579537,0.0001278,2]
[325240575,1714620640465,-516.28957424,0.0001278,2]
[325240577,1714620640476,-1478.06021063,0.0001278,2]
[325240578,1714620640485,-331.48913897,0.0001278,2]
[325240580,1714620640494,-10.32279312,0.0001278,2]
[325240581,1714620640506,-320.98369012,0.0001278,2]
[325240582,1714620640515,-336.94007789,0.00012868,2]
[325240583,1714620640523,-86.96949281,0.00012869,2]
[325240584,1714620640535,-293.535,0.00012869,2]
[325240585,1714620640547,-187.19645012,0.00012869,2]
[325240586,1714620640556,-334.95634417,0.0001287,2]
[325240587,1714620640568,-249665.04365583,0.0001287,2]
[325240588,1714620640577,-381.2017043,0.00012871,2]
[325240589,1714620640586,-264.3318712,0.00012871,2]
[325240590,1714620640595,-1055.9364775,0.00012871,2]
[325240591,1714620640604,-2093.424887,0.00012871,2]
[325240592,1714620640615,-1764.5877236,0.00012871,2]
[325240593,1714620640624,-196913.05369675,0.0001288,2]
[325240594,1714620640788,-899.20318369,0.0001288,2]
[325240595,1714620640800,-2828.832935,0.0001288,2]
[325240596,1714620640811,-2089.66046276,0.0001288,2]
[325240597,1714620640823,-886.45947666,0.0001288,2]
[325240598,1714620640834,-1626.6430917,0.0001288,2]
[325240599,1714620640845,-2944.99999991,0.0001288,2]
[325240610,1714620643372,-486.91192548,0.0001288,2]
[325240611,1714620643383,-967.37861202,0.0001288,2]
[325240612,1714620643395,-359.72553538,0.0001288,2]
[325240613,1714620643806,-1832.7022953,0.0001288,2]
[325240614,1714620643820,-5013.32562119,0.0001288,2]
[325240615,1714620643832,-2701.80985431,0.0001288,2]
[325240616,1714620643884,-605.5064531,0.0001288,2]
[325240617,1714620643896,-3972.09929284,0.0001288,2]
[325240618,1714620643908,-1111.08106229,0.0001288,2]
[325240619,1714620643955,-796.75772232,0.0001288,2]
[325240620,1714620643966,-3198.06694715,0.0001288,2]
[325240621,1714620643978,-460.32635449,0.0001288,2]
[325240770,1714620646477,-16959.0331764,0.0001288,2]
[325240773,1714620646489,-660.69999998,0.0001288,2]
[325240776,1714620646501,-10462.89910724,0.0001288,2]
[325240779,1714620646512,-2218.45898703,0.0001288,2]
[325240783,1714620646526,-1911.81367128,0.0001288,2]
[325240787,1714620646538,-1145.62207892,0.0001288,2]
[325240812,1714620646770,-8587.22792186,0.0001288,2]
[325240814,1714620646782,-458.09629476,0.0001288,2]
[325240842,1714620647017,-348.5255592,0.0001288,2]
[325241892,1714621832685,-155.0,0.00011317,2]
[325241894,1714621832694,-892.64718629,0.00011318,2]
[325241901,1714621832735,-107.35281371,0.00011318,2]
[325241903,1714621832745,-1218.67600592,0.00011748,2]
[325241906,1714621832755,-1291.36512063,0.00011748,2]
[325241932,1714621838307,-264.60791087,0.00011748,2]
[325241933,1714621838415,-1592.65686539,0.00011748,2]
[325241934,1714621838427,-12175.55409719,0.00011748,2]
[325241935,1714621838437,-160.0,0.00011748,2]
[325241936,1714621838447,-150.0,0.00011748,2]
[325241937,1714621838456,-250.0,0.00011793,2]